[Event "Nové Hrady - Open"]
[Site "Nové Hrady, Czech Republic"]
[Date "2024.08.11"]
[Round "1.1"]
[White "Žilavý, Jan"]
[Black "Hrbková, Johana"]
[Result "1-0"]
[TimeControl "2x90min+30s"]
[WhiteFideId "350141"]
[BlackFideId "23709146"]
[WhiteElo "2127"]
[BlackElo "1607"]

1. e4 {[%clk 01:30:53]} {[%emt 00:00:05]} e5 {[%clk 01:30:45]} {[%emt
00:00:16]} 2. Nf3 {[%clk 01:31:15]} {[%emt 00:00:08]} Nc6 {[%clk 01:30:50]}
{[%emt 00:00:25]} 3. Bb5 {[%clk 01:31:31]} {[%emt 00:00:14]} d6 {[%clk
01:29:23]} {[%emt 00:01:57]} 4. d4 {[%clk 01:31:37]} {[%emt 00:00:25]} Bd7
{[%clk 01:28:18]} {[%emt 00:01:35]} 5. d5 {[%clk 01:29:13]} {[%emt 00:02:53]}
Nce7 {[%clk 01:27:08]} {[%emt 00:01:40]} 6. a4 {[%clk 01:25:33]} {[%emt
00:04:11]} f5 {[%clk 01:19:45]} {[%emt 00:07:51]} 7. Ng5 {[%clk 01:23:38]}
{[%emt 00:02:26]} Nf6 {[%clk 01:17:03]} {[%emt 00:03:12]} 8. Ne6 {[%clk
01:20:10]} {[%emt 00:03:59]} Qc8 {[%clk 01:14:51]} {[%emt 00:02:42]} 9. Nc3
{[%clk 01:12:50]} {[%emt 00:07:50]} a6 {[%clk 01:08:54]} {[%emt 00:06:27]} 10.
Bg5 {[%clk 01:06:03]} {[%emt 00:07:17]} axb5 {[%clk 01:00:58]} {[%emt
00:08:25]} 11. Bxf6 {[%clk 01:06:25]} {[%emt 00:00:08]} Bxe6 {[%clk 00:55:02]}
{[%emt 00:06:26]} 12. Bxe7 {[%clk 01:05:36]} {[%emt 00:01:19]} Bxe7 {[%clk
00:51:48]} {[%emt 00:03:44]} 13. dxe6 {[%clk 01:05:53]} {[%emt 00:00:13]} Qxe6
{[%clk 00:51:24]} {[%emt 00:00:54]} 14. Nxb5 {[%clk 01:05:38]} {[%emt
00:00:45]} O-O-O {[%clk 00:47:59]} {[%emt 00:03:55]} 15. Qd5 {[%clk 00:59:12]}
{[%emt 00:06:56]} Qg6 {[%clk 00:41:49]} {[%emt 00:06:40]} 16. exf5 {[%clk
00:58:44]} {[%emt 00:00:58]} Qxf5 {[%clk 00:41:16]} {[%emt 00:01:03]} 17. Ra3
{[%clk 00:43:24]} {[%emt 00:15:51]} Qxc2 {[%clk 00:27:32]} {[%emt 00:14:13]} 18.
O-O {[%emt 00:04:11]} c6 {[%clk 00:22:50]} {[%emt 00:03:54]} 19. Rc3 {[%clk
00:37:45]} {[%emt 00:03:46]} Kd7 {[%clk 00:13:40]} {[%emt 00:09:40]} 20. Rxc2
{[%clk 00:31:55]} {[%emt 00:06:20]} cxd5 {[%clk 00:13:59]} {[%emt 00:00:12]} 21.
Rc7+ {[%clk 00:32:10]} {[%emt 00:00:14]} Ke6 {[%clk 00:13:47]} {[%emt
00:00:41]} 22. Rxb7 {[%clk 00:32:26]} {[%emt 00:00:15]} Rc8 {[%clk 00:12:01]}
{[%emt 00:02:17]} 23. Nc7+ {[%clk 00:31:23]} {[%emt 00:01:33]} Kf5 {[%clk
00:10:04]} {[%emt 00:02:27]} 24. Nxd5 {[%clk 00:31:45]} {[%emt 00:00:07]} Bg5
{[%clk 00:09:40]} {[%emt 00:00:53]} 25. b4 {[%clk 00:31:12]} {[%emt 00:01:04]}
Rc4 {[%clk 00:08:22]} {[%emt 00:01:48]} 26. a5 {[%clk 00:29:13]} {[%emt
00:02:29]} 1-0

[Event "Nové Hrady - Open"]
[Site "Nové Hrady, Czech Republic"]
[Date "2024.08.11"]
[Round "1.2"]
[White "Černý, Zbyšek"]
[Black "Dudek, Vojtěch"]
[Result "0-1"]
[TimeControl "2x90min+30s"]
[WhiteFideId "23739380"]
[BlackFideId "398780"]
[WhiteElo "1582"]
[BlackElo "2117"]

1. d4 {[%clk 01:30:53]} {[%emt 00:00:06]} Nf6 {[%clk 01:30:53]} {[%emt
00:00:07]} 2. c4 {[%clk 01:31:14]} {[%emt 00:00:10]} e6 {[%clk 01:29:36]}
{[%emt 00:01:46]} 3. Nc3 {[%clk 01:31:26]} {[%emt 00:00:19]} d5 {[%clk
01:30:02]} {[%emt 00:00:03]} 4. e3 {[%clk 01:31:27]} {[%emt 00:00:29]} Be7
{[%clk 01:30:19]} {[%emt 00:00:12]} 5. Nf3 {[%clk 01:31:44]} {[%emt 00:00:14]}
O-O {[%clk 01:30:41]} {[%emt 00:00:08]} 6. Bd3 {[%clk 01:31:28]} {[%emt
00:00:47]} dxc4 {[%clk 01:26:52]} {[%emt 00:04:18]} 7. Bxc4 {[%clk 01:31:34]}
{[%emt 00:00:23]} c5 {[%clk 01:27:05]} {[%emt 00:00:18]} 8. O-O {[%clk
01:30:59]} {[%emt 00:01:05]} a6 {[%clk 01:23:56]} {[%emt 00:03:39]} 9. a4
{[%clk 01:27:34]} {[%emt 00:03:55]} Nc6 {[%clk 01:24:01]} {[%emt 00:00:24]} 10.
b3 {[%clk 01:26:39]} {[%emt 00:01:26]} Bd7 {[%clk 01:21:55]} {[%emt 00:02:36]}
11. Bb2 {[%clk 01:24:59]} {[%emt 00:02:10]} cxd4 {[%clk 01:15:13]} {[%emt
00:07:11]} 12. Nxd4 {[%clk 01:24:45]} {[%emt 00:00:45]} Qc7 {[%clk 01:14:39]}
{[%emt 00:01:01]} 13. Nf3 {[%clk 01:22:19]} {[%emt 00:02:59]} Rfd8 {[%clk
01:13:46]} {[%emt 00:01:22]} 14. Qc2 {[%clk 01:21:48]} {[%emt 00:01:01]} Na5
{[%clk 01:03:29]} {[%emt 00:10:49]} 15. Be2 {[%clk 01:20:14]} {[%emt 00:02:02]}
Qb6 {[%clk 01:02:27]} {[%emt 00:01:32]} 16. Bd1 {[%clk 01:12:21]} {[%emt
00:08:24]} Rac8 {[%clk 00:58:40]} {[%emt 00:04:16]} 17. Rb1 {[%clk 01:03:47]}
{[%emt 00:09:04]} Bb4 {[%clk 00:56:26]} {[%emt 00:02:44]} 18. Ne5 {[%clk
00:59:40]} {[%emt 00:04:37]} Be8 {[%clk 00:50:47]} {[%emt 00:06:08]} 19. Be2
{[%clk 00:58:21]} {[%emt 00:01:50]} Qc7 {[%clk 00:47:29]} {[%emt 00:03:47]} 20.
Nc4 {[%clk 00:55:48]} {[%emt 00:03:04]} b5 {[%clk 00:46:40]} {[%emt 00:01:19]}
21. axb5 {[%clk 00:54:56]} {[%emt 00:01:23]} axb5 {[%clk 00:46:26]} {[%emt
00:00:44]} 22. Na2 {[%clk 00:48:50]} {[%emt 00:06:37]} Be7 {[%clk 00:45:26]}
{[%emt 00:01:28]} 23. Qc3 {[%clk 00:44:30]} {[%emt 00:04:48]} bxc4 {[%clk
00:45:22]} {[%emt 00:00:37]} 24. bxc4 {[%clk 00:43:17]} {[%emt 00:01:43]} Nb7
{[%clk 00:45:23]} {[%emt 00:00:27]} 25. Ba1 {[%clk 00:42:33]} {[%emt 00:01:15]}
Nc5 {[%clk 00:45:23]} {[%emt 00:00:30]} 26. Bf3 {[%clk 00:42:22]} {[%emt
00:00:42]} Bc6 {[%clk 00:45:33]} {[%emt 00:00:19]} 27. Bxc6 {[%clk 00:42:17]}
{[%emt 00:00:36]} Qxc6 {[%clk 00:45:59]} {[%emt 00:00:03]} 28. Nb4 {[%clk
00:42:38]} {[%emt 00:00:10]} Qc7 {[%clk 00:45:36]} {[%emt 00:00:50]} 29. Rfd1
{[%clk 00:42:11]} {[%emt 00:00:59]} Nce4 {[%clk 00:45:27]} {[%emt 00:00:39]} 30.
Qb2 {[%clk 00:42:17]} {[%emt 00:00:22]} Rxd1+ {[%clk 00:42:59]} {[%emt
00:03:01]} 31. Rxd1 {[%clk 00:42:37]} {[%emt 00:00:10]} Rb8 {[%clk 00:39:36]}
{[%emt 00:03:53]} 32. Na6 {[%clk 00:40:52]} {[%emt 00:02:15]} Rxb2 {[%clk
00:38:39]} {[%emt 00:01:26]} 33. Nxc7 {[%clk 00:41:12]} {[%emt 00:00:11]} Rxf2
{[%clk 00:37:43]} {[%emt 00:01:25]} 0-1

[Event "Nové Hrady - Open"]
[Site "Nové Hrady, Czech Republic"]
[Date "2024.08.11"]
[Round "1.3"]
[White "Šimůnek, Jakub Šimon"]
[Black "Slabý, Martin"]
[Result "1-0"]
[TimeControl "2x90min+30s"]
[WhiteFideId "23709464"]
[BlackFideId "23713593"]
[WhiteElo "2042"]
[BlackElo "1569"]

1. e4 {[%clk 01:30:57]} {[%emt 00:00:03]} c5 {[%clk 01:30:54]} {[%emt
00:00:07]} 2. Nf3 {[%clk 01:31:23]} {[%emt 00:00:04]} e6 {[%clk 01:30:59]}
{[%emt 00:00:24]} 3. c3 {[%clk 01:31:48]} {[%emt 00:00:05]} a6 {[%clk
01:30:29]} {[%emt 00:01:00]} 4. d4 {[%clk 01:32:12]} {[%emt 00:00:07]} cxd4
{[%clk 01:30:16]} {[%emt 00:00:43]} 5. cxd4 {[%clk 01:32:39]} {[%emt 00:00:02]}
d6 {[%clk 01:25:08]} {[%emt 00:05:38]} 6. Bd3 {[%clk 01:32:17]} {[%emt
00:00:53]} b5 {[%clk 01:22:03]} {[%emt 00:03:35]} 7. O-O {[%clk 01:28:45]}
{[%emt 00:04:01]} Bb7 {[%clk 01:21:25]} {[%emt 00:01:09]} 8. Nc3 {[%clk
01:02:44]} {[%emt 00:26:31]} Nd7 {[%clk 01:19:56]} {[%emt 00:01:58]} 9. Re1
{[%clk 00:58:11]} {[%emt 00:05:04]} Be7 {[%clk 01:17:25]} {[%emt 00:03:01]} 10.
e5 {[%clk 00:56:15]} {[%emt 00:02:25]} Bxf3 {[%clk 01:09:01]} {[%emt 00:08:53]}
11. Qxf3 {[%clk 00:56:38]} {[%emt 00:00:07]} dxe5 {[%clk 01:08:25]} {[%emt
00:01:06]} 12. dxe5 {[%clk 00:57:00]} {[%emt 00:00:08]} Qb8 {[%clk 01:05:37]}
{[%emt 00:03:15]} 13. Bf4 {[%clk 00:54:58]} {[%emt 00:02:36]} Bb4 {[%clk
01:03:18]} {[%emt 00:02:49]} 14. Qg4 {[%clk 00:39:41]} {[%emt 00:15:47]} g6
{[%clk 01:01:48]} {[%emt 00:02:00]} 15. Re2 {[%clk 00:32:11]} {[%emt 00:08:01]}
Ne7 {[%clk 00:59:17]} {[%emt 00:03:00]} 16. Ne4 {[%clk 00:20:07]} {[%emt
00:12:34]} Nc6 {[%clk 00:44:23]} {[%emt 00:15:23]} 17. Nf6+ {[%clk 00:18:18]}
{[%emt 00:02:20]} Nxf6 {[%clk 00:44:08]} {[%emt 00:00:44]} 18. exf6 {[%clk
00:18:46]} {[%emt 00:00:03]} Bd6 {[%clk 00:41:22]} {[%emt 00:03:15]} 19. Rxe6+
{[%clk 00:17:20]} {[%emt 00:01:57]} fxe6 {[%clk 00:39:37]} {[%emt 00:02:16]} 20.
Qxe6+ {[%clk 00:17:48]} {[%emt 00:00:02]} Kd8 {[%clk 00:37:36]} {[%emt
00:02:31]} 21. Bxd6 {[%clk 00:18:07]} {[%emt 00:00:10]} Nd4 {[%clk 00:37:06]}
{[%emt 00:01:00]} 22. Qe7+ {[%clk 00:17:44]} {[%emt 00:00:53]} 1-0

[Event "Nové Hrady - Open"]
[Site "Nové Hrady, Czech Republic"]
[Date "2024.08.11"]
[Round "1.4"]
[White "Mácová, Markéta"]
[Black "Slabý, Matěj"]
[Result "0-1"]
[TimeControl "2x90min+30s"]
[WhiteFideId "23715588"]
[BlackFideId "23734876"]
[WhiteElo "1567"]
[BlackElo "2020"]

1. e4 {[%clk 01:30:56]} {[%emt 00:00:02]} c6 {[%clk 01:30:44]} {[%emt
00:00:17]} 2. d4 {[%clk 01:30:47]} {[%emt 00:00:39]} d5 {[%clk 01:31:08]}
{[%emt 00:00:07]} 3. exd5 {[%clk 01:30:21]} {[%emt 00:00:55]} cxd5 {[%clk
01:31:29]} {[%emt 00:00:08]} 4. Nf3 {[%clk 01:30:30]} {[%emt 00:00:22]} Bg4
{[%clk 01:31:28]} {[%emt 00:00:31]} 5. Be2 {[%clk 01:30:26]} {[%emt 00:00:34]}
Nc6 {[%clk 01:31:04]} {[%emt 00:00:54]} 6. Bf4 {[%clk 01:30:04]} {[%emt
00:00:52]} Qb6 {[%clk 01:28:59]} {[%emt 00:02:35]} 7. Nc3 {[%clk 01:24:20]}
{[%emt 00:06:13]} e6 {[%clk 01:28:49]} {[%emt 00:00:41]} 8. Nb5 {[%clk
01:21:22]} {[%emt 00:03:29]} Rc8 {[%clk 01:27:38]} {[%emt 00:01:41]} 9. Rb1
{[%clk 01:08:41]} {[%emt 00:13:10]} Bxf3 {[%clk 01:26:43]} {[%emt 00:01:25]} 10.
gxf3 {[%clk 01:08:06]} {[%emt 00:01:05]} a6 {[%clk 01:27:00]} {[%emt 00:00:14]}
11. Nc3 {[%clk 01:07:19]} {[%emt 00:01:16]} Qxd4 {[%clk 01:26:18]} {[%emt
00:01:11]} 12. Qxd4 {[%clk 01:05:35]} {[%emt 00:02:15]} Nxd4 {[%clk 01:26:43]}
{[%emt 00:00:06]} 13. a3 {[%clk 01:02:38]} {[%emt 00:03:26]} Nxc2+ {[%clk
01:26:52]} {[%emt 00:00:21]} 14. Kd2 {[%clk 01:02:41]} {[%emt 00:00:27]} Nd4
{[%clk 01:27:05]} {[%emt 00:00:16]} 15. Bd1 {[%clk 01:02:43]} {[%emt 00:00:29]}
Ne7 {[%clk 01:24:11]} {[%emt 00:03:24]} 16. Rg1 {[%clk 01:01:37]} {[%emt
00:01:35]} Ng6 {[%clk 01:23:57]} {[%emt 00:00:45]} 17. Be3 {[%clk 01:01:48]}
{[%emt 00:00:19]} Nf5 {[%clk 01:22:57]} {[%emt 00:01:29]} 18. Bb6 {[%clk
00:59:46]} {[%emt 00:02:33]} Ne5 {[%clk 01:19:25]} {[%emt 00:04:02]} 19. Be2
{[%clk 00:59:00]} {[%emt 00:01:14]} Bd6 {[%clk 01:11:30]} {[%emt 00:08:25]} 20.
Rbe1 {[%clk 00:54:10]} {[%emt 00:05:21]} Nh4 {[%clk 01:05:47]} {[%emt
00:06:15]} 21. Ke3 {[%clk 00:51:36]} {[%emt 00:03:03]} d4+ {[%clk 01:04:12]}
{[%emt 00:02:05]} 22. Bxd4 {[%clk 00:51:26]} {[%emt 00:00:40]} Nf5+ {[%clk
01:03:31]} {[%emt 00:01:12]} 23. Ke4 {[%clk 00:50:53]} {[%emt 00:01:02]} Nc4
{[%clk 01:03:06]} {[%emt 00:00:54]} 24. Bxc4 {[%clk 00:48:52]} {[%emt
00:02:32]} Rxc4 {[%clk 01:03:28]} {[%emt 00:00:08]} 25. Kd3 {[%clk 00:48:59]}
{[%emt 00:00:23]} Rxd4+ {[%clk 01:03:47]} {[%emt 00:00:11]} 26. Kc2 {[%clk
00:48:44]} {[%emt 00:00:45]} Bxh2 {[%clk 01:02:20]} {[%emt 00:01:57]} 0-1

[Event "Nové Hrady - Open"]
[Site "Nové Hrady, Czech Republic"]
[Date "2024.08.11"]
[Round "1.5"]
[White "Kaiser, Richard"]
[Black "Šrámek, Jan"]
[Result "1-0"]
[TimeControl "2x90min+30s"]
[WhiteFideId "4651286"]
[BlackFideId "23743638"]
[WhiteElo "2019"]
[BlackElo "1555"]

1. e4 {[%clk 01:30:54]} {[%emt 00:00:06]} e5 {[%clk 01:29:57]} {[%emt
00:01:04]} 2. Nc3 {[%clk 01:31:15]} {[%emt 00:00:09]} Nc6 {[%clk 01:28:57]}
{[%emt 00:01:30]} 3. Bc4 {[%clk 01:31:38]} {[%emt 00:00:06]} Nf6 {[%clk
01:27:55]} {[%emt 00:01:32]} 4. d3 {[%clk 01:30:04]} {[%emt 00:02:04]} Bc5
{[%clk 01:25:54]} {[%emt 00:02:31]} 5. Nf3 {[%clk 01:27:23]} {[%emt 00:03:11]}
d6 {[%clk 01:22:55]} {[%emt 00:03:29]} 6. Bg5 {[%clk 01:20:34]} {[%emt
00:07:20]} Bg4 {[%clk 01:19:30]} {[%emt 00:03:55]} 7. Na4 {[%clk 01:05:03]}
{[%emt 00:16:01]} Bb6 {[%clk 01:13:57]} {[%emt 00:06:03]} 8. c3 {[%clk
01:04:15]} {[%emt 00:01:18]} O-O {[%clk 01:11:11]} {[%emt 00:03:15]} 9. b4
{[%clk 00:58:45]} {[%emt 00:06:01]} h6 {[%clk 01:07:48]} {[%emt 00:03:52]} 10.
Nxb6 {[%clk 00:58:49]} {[%emt 00:00:26]} axb6 {[%clk 01:06:32]} {[%emt
00:01:46]} 11. Bh4 {[%clk 00:57:27]} {[%emt 00:01:52]} Ra3 {[%clk 01:04:31]}
{[%emt 00:02:32]} 12. Qc1 {[%clk 00:56:44]} {[%emt 00:01:12]} Ra8 {[%clk
01:03:09]} {[%emt 00:01:53]} 13. Rg1 {[%clk 00:50:32]} {[%emt 00:06:40]} Qe7
{[%clk 01:01:29]} {[%emt 00:02:12]} 14. h3 {[%clk 00:50:35]} {[%emt 00:00:27]}
Be6 {[%clk 01:01:06]} {[%emt 00:00:52]} 15. g4 {[%clk 00:50:49]} {[%emt
00:00:16]} Bxc4 {[%clk 00:57:43]} {[%emt 00:03:54]} 16. g5 {[%clk 00:34:59]}
{[%emt 00:16:19]} Nh5 {[%clk 00:57:10]} {[%emt 00:01:03]} 17. gxh6 {[%clk
00:34:38]} {[%emt 00:00:51]} Qe6 {[%clk 00:57:09]} {[%emt 00:00:31]} 18. hxg7
{[%clk 00:34:27]} {[%emt 00:00:41]} Nxg7 {[%clk 00:57:08]} {[%emt 00:00:31]} 19.
Qg5 {[%clk 00:31:41]} {[%emt 00:03:16]} Qg6 {[%clk 00:57:22]} {[%emt 00:00:17]}
20. Qf6 {[%clk 00:28:36]} {[%emt 00:03:35]} Bxd3 {[%clk 00:54:40]} {[%emt
00:03:11]} 21. Rxg6 {[%clk 00:25:56]} {[%emt 00:03:09]} 1-0

[Event "Nové Hrady - Open"]
[Site "Nové Hrady, Czech Republic"]
[Date "2024.08.11"]
[Round "1.6"]
[White "Schneider, Wolfgang"]
[Black "Hrbek, Jáchym"]
[Result "0-1"]
[TimeControl "2x90min+30s"]
[WhiteFideId "1639471"]
[BlackFideId "23709138"]
[WhiteElo "1542"]
[BlackElo "1996"]

1. e4 {[%clk 01:30:55]} {[%emt 00:00:04]} c5 {[%clk 01:30:35]} {[%emt
00:00:27]} 2. c4 {[%clk 01:30:47]} {[%emt 00:00:37]} Nc6 {[%clk 01:29:31]}
{[%emt 00:01:34]} 3. Nf3 {[%clk 01:30:32]} {[%emt 00:00:45]} e5 {[%clk
01:28:31]} {[%emt 00:01:30]} 4. d3 {[%clk 01:30:23]} {[%emt 00:00:39]} Nge7
{[%clk 01:26:24]} {[%emt 00:02:36]} 5. Nc3 {[%clk 01:29:59]} {[%emt 00:00:54]}
d6 {[%clk 01:21:20]} {[%emt 00:05:35]} 6. a3 {[%clk 01:28:32]} {[%emt
00:01:57]} g6 {[%clk 01:16:46]} {[%emt 00:05:04]} 7. h3 {[%clk 01:27:15]}
{[%emt 00:01:47]} Bg7 {[%clk 01:14:00]} {[%emt 00:03:16]} 8. Bg5 {[%clk
01:19:14]} {[%emt 00:08:31]} h6 {[%clk 01:09:25]} {[%emt 00:05:05]} 9. Bh4
{[%clk 01:19:20]} {[%emt 00:00:23]} g5 {[%clk 01:05:44]} {[%emt 00:04:11]} 10.
Bg3 {[%clk 01:19:05]} {[%emt 00:00:45]} O-O {[%clk 01:05:38]} {[%emt 00:00:37]}
11. Be2 {[%clk 01:18:24]} {[%emt 00:01:11]} f5 {[%clk 01:02:05]} {[%emt
00:04:02]} 12. Nd5 {[%clk 01:16:31]} {[%emt 00:02:24]} Nxd5 {[%clk 00:55:59]}
{[%emt 00:06:36]} 13. cxd5 {[%clk 01:16:20]} {[%emt 00:00:40]} Ne7 {[%clk
00:55:59]} {[%emt 00:00:30]} 14. Qb3 {[%clk 01:15:38]} {[%emt 00:01:11]} b5
{[%clk 00:50:25]} {[%emt 00:06:06]} 15. Qxb5 {[%clk 01:11:34]} {[%emt
00:04:31]} a5 {[%clk 00:47:45]} {[%emt 00:03:13]} 16. exf5 {[%clk 01:07:04]}
{[%emt 00:04:59]} Bxf5 {[%clk 00:44:12]} {[%emt 00:04:04]} 17. Nd2 {[%clk
01:01:58]} {[%emt 00:05:36]} Rb8 {[%clk 00:42:32]} {[%emt 00:02:09]} 18. Qa6
{[%clk 00:59:53]} {[%emt 00:02:35]} Bc8 {[%clk 00:41:32]} {[%emt 00:01:30]} 19.
Qc4 {[%clk 00:59:32]} {[%emt 00:00:51]} Rxb2 {[%clk 00:39:47]} {[%emt
00:02:16]} 20. Ne4 {[%clk 00:57:05]} {[%emt 00:02:57]} Bb7 {[%clk 00:36:26]}
{[%emt 00:03:51]} 21. Bf3 {[%clk 00:54:47]} {[%emt 00:02:47]} Bxd5 {[%clk
00:29:43]} {[%emt 00:07:14]} 22. Qa6 {[%clk 00:52:46]} {[%emt 00:02:30]} Rb6
{[%clk 00:26:22]} {[%emt 00:03:51]} 23. Qxa5 {[%clk 00:46:28]} {[%emt
00:06:47]} Rb1+ {[%clk 00:26:41]} {[%emt 00:00:12]} 24. Rxb1 {[%clk 00:46:26]}
{[%emt 00:00:32]} Qxa5+ {[%clk 00:27:02]} {[%emt 00:00:09]} 25. Nd2 {[%clk
00:46:08]} {[%emt 00:00:48]} Bxf3 {[%clk 00:27:10]} {[%emt 00:00:21]} 26. gxf3
{[%clk 00:46:15]} {[%emt 00:00:25]} Nf5 {[%clk 00:27:06]} {[%emt 00:00:34]} 27.
Ke2 {[%clk 00:39:15]} {[%emt 00:07:30]} Nd4+ {[%clk 00:24:59]} {[%emt
00:02:37]} 28. Ke3 {[%clk 00:38:59]} {[%emt 00:00:46]} d5 {[%clk 00:24:14]}
{[%emt 00:01:15]} 29. h4 {[%clk 00:37:18]} {[%emt 00:02:10]} Qa6 {[%clk
00:24:22]} {[%emt 00:00:23]} 30. Rbc1 {[%clk 00:33:50]} {[%emt 00:03:56]} Qf6
{[%clk 00:24:24]} {[%emt 00:00:29]} 31. hxg5 {[%clk 00:32:13]} {[%emt
00:02:07]} Qf4+ {[%clk 00:24:38]} {[%emt 00:00:16]} 32. Bxf4 {[%clk 00:31:57]}
{[%emt 00:00:45]} exf4# {[%clk 00:24:51]} {[%emt 00:00:16]} 33. Kxd4 {[%emt
00:00:49]} 0-1

[Event "Nové Hrady - Open"]
[Site "Nové Hrady, Czech Republic"]
[Date "2024.08.11"]
[Round "1.7"]
[White "Steinbauer, Sebastián"]
[Black "Polanský, Matěj"]
[Result "1-0"]
[TimeControl "2x90min+30s"]
[WhiteFideId "399272"]
[BlackFideId "23741872"]
[WhiteElo "1990"]
[BlackElo "1520"]

1. e4 {[%clk 01:30:40]} {[%emt 00:00:20]} e5 {[%clk 01:30:49]} {[%emt
00:00:12]} 2. Nf3 {[%clk 01:31:03]} {[%emt 00:00:06]} Nc6 {[%clk 01:30:44]}
{[%emt 00:00:35]} 3. Bc4 {[%clk 01:31:23]} {[%emt 00:00:11]} Nf6 {[%clk
01:30:35]} {[%emt 00:00:39]} 4. Ng5 {[%clk 01:31:20]} {[%emt 00:00:33]} d5
{[%clk 01:30:17]} {[%emt 00:00:48]} 5. exd5 {[%clk 01:31:44]} {[%emt 00:00:05]}
b5 {[%clk 01:30:03]} {[%emt 00:00:44]} 6. dxc6 {[%clk 01:08:58]} {[%emt
00:23:17]} bxc4 {[%clk 01:29:43]} {[%emt 00:00:49]} 7. Nc3 {[%clk 01:08:10]}
{[%emt 00:01:19]} Bc5 {[%clk 01:27:12]} {[%emt 00:03:00]} 8. Qe2 {[%clk
01:07:27]} {[%emt 00:01:13]} O-O {[%clk 01:20:28]} {[%emt 00:07:15]} 9. O-O
{[%clk 01:06:15]} {[%emt 00:01:42]} Re8 {[%clk 01:10:32]} {[%emt 00:10:25]} 10.
Qxc4 {[%clk 01:05:36]} {[%emt 00:01:09]} Qe7 {[%clk 01:09:34]} {[%emt
00:01:28]} 11. d3 {[%clk 01:05:00]} {[%emt 00:01:06]} Bb6 {[%clk 01:08:15]}
{[%emt 00:01:50]} 12. Be3 {[%clk 01:03:48]} {[%emt 00:01:42]} h6 {[%clk
01:05:10]} {[%emt 00:03:35]} 13. Nge4 {[%clk 00:59:56]} {[%emt 00:04:22]} Nxe4
{[%clk 00:58:55]} {[%emt 00:06:45]} 14. Qxe4 {[%clk 00:58:55]} {[%emt
00:01:31]} Qd6 {[%clk 00:55:45]} {[%emt 00:03:40]} 15. Qa4 {[%clk 00:55:03]}
{[%emt 00:04:21]} Bf5 {[%clk 00:53:44]} {[%emt 00:02:32]} 16. Rad1 {[%clk
00:53:53]} {[%emt 00:01:39]} Qg6 {[%clk 00:52:06]} {[%emt 00:02:08]} 17. Ne4
{[%clk 00:53:29]} {[%emt 00:00:54]} Rad8 {[%clk 00:50:12]} {[%emt 00:02:25]} 18.
a3 {[%clk 00:48:49]} {[%emt 00:05:10]} Re6 {[%clk 00:47:31]} {[%emt 00:03:10]}
19. Bxb6 {[%clk 00:44:05]} {[%emt 00:05:14]} axb6 {[%clk 00:47:23]} {[%emt
00:00:38]} 20. Ng3 {[%clk 00:44:25]} {[%emt 00:00:10]} Red6 {[%clk 00:42:38]}
{[%emt 00:05:16]} 21. Nxf5 {[%clk 00:40:55]} {[%emt 00:03:59]} Qxf5 {[%clk
00:42:48]} {[%emt 00:00:20]} 22. b4 {[%clk 00:41:03]} {[%emt 00:00:23]} Rd4
{[%clk 00:41:54]} {[%emt 00:01:24]} 23. Rde1 {[%clk 00:40:21]} {[%emt
00:01:12]} Re8 {[%clk 00:41:17]} {[%emt 00:01:07]} 24. Qb5 {[%clk 00:40:05]}
{[%emt 00:00:46]} Qf6 {[%clk 00:38:22]} {[%emt 00:03:24]} 25. Re3 {[%clk
00:37:02]} {[%emt 00:03:34]} Rd6 {[%clk 00:35:46]} {[%emt 00:03:06]} 26. c4
{[%clk 00:35:54]} {[%emt 00:01:37]} Rxc6 {[%clk 00:34:28]} {[%emt 00:01:49]} 27.
d4 {[%clk 00:36:02]} {[%emt 00:00:22]} Rce6 {[%clk 00:33:08]} {[%emt 00:01:49]}
28. d5 {[%clk 00:35:38]} {[%emt 00:00:54]} R6e7 {[%clk 00:33:09]} {[%emt
00:00:29]} 29. a4 {[%clk 00:34:31]} {[%emt 00:01:38]} Ra8 {[%clk 00:31:01]}
{[%emt 00:02:38]} 30. Rd1 {[%clk 00:33:29]} {[%emt 00:01:31]} Ree8 {[%clk
00:29:34]} {[%emt 00:01:56]} 31. g3 {[%clk 00:33:32]} {[%emt 00:00:29]} e4
{[%clk 00:26:46]} {[%emt 00:03:16]} 32. Rde1 {[%clk 00:27:54]} {[%emt
00:06:09]} Qd4 {[%clk 00:24:56]} {[%emt 00:02:18]} 33. Qc6 {[%clk 00:28:12]}
{[%emt 00:00:14]} Rac8 {[%clk 00:24:00]} {[%emt 00:01:26]} 34. a5 {[%clk
00:27:17]} {[%emt 00:01:25]} bxa5 {[%clk 00:23:34]} {[%emt 00:00:56]} 35. bxa5
{[%clk 00:27:43]} {[%emt 00:00:04]} Qa7 {[%clk 00:21:19]} {[%emt 00:02:41]} 36.
Rxe4 {[%clk 00:27:08]} {[%emt 00:01:09]} Rxe4 {[%clk 00:21:31]} {[%emt
00:00:18]} 37. Rxe4 {[%clk 00:27:34]} {[%emt 00:00:04]} Qxa5 {[%clk 00:21:14]}
{[%emt 00:00:48]} 38. d6 {[%clk 00:27:50]} {[%emt 00:00:13]} Qa1+ {[%clk
00:17:02]} {[%emt 00:04:42]} 39. Kg2 {[%clk 00:28:14]} {[%emt 00:00:05]} Qf6
{[%clk 00:16:35]} {[%emt 00:00:57]} 40. d7 {[%clk 00:27:56]} {[%emt 00:00:49]}
Qxc6 {[%clk 00:16:24]} {[%emt 00:00:41]} 41. dxc8=Q+ {[%clk 00:28:14]} {[%emt
00:00:12]} Kh7 {[%clk 00:16:17]} {[%emt 00:00:37]} 42. Qf5+ {[%clk 00:28:37]}
{[%emt 00:00:07]} Qg6 {[%clk 00:16:12]} {[%emt 00:00:36]} 43. Qxg6+ {[%clk
00:28:57]} {[%emt 00:00:10]} Kxg6 {[%clk 00:16:30]} {[%emt 00:00:11]} 44. Re7
{[%clk 00:29:25]} {[%emt 00:00:03]} Kf6 {[%clk 00:16:34]} {[%emt 00:00:25]} 45.
Rxc7 {[%clk 00:29:52]} {[%emt 00:00:04]} Ke6 {[%clk 00:16:37]} {[%emt
00:00:25]} 46. c5 {[%clk 00:30:19]} {[%emt 00:00:05]} Kd5 {[%clk 00:16:41]}
{[%emt 00:00:26]} 47. Rxf7 {[%clk 00:30:41]} {[%emt 00:00:08]} h5 {[%clk
00:16:27]} {[%emt 00:00:43]} 48. Rxg7 {[%clk 00:31:05]} {[%emt 00:00:05]} h4
{[%clk 00:16:45]} {[%emt 00:00:13]} 49. Rg5+ {[%clk 00:31:26]} {[%emt
00:00:09]} Ke4 {[%clk 00:16:48]} {[%emt 00:00:24]} 50. c6 {[%clk 00:31:47]}
{[%emt 00:00:12]} h3+ {[%emt 00:00:21]} 51. Kf1 {[%clk 00:32:00]} {[%emt
00:00:10]} Kf3 {[%clk 00:17:01]} {[%emt 00:00:33]} 52. c7 {[%clk 00:32:23]}
{[%emt 00:00:07]} Ke4 {[%clk 00:17:17]} {[%emt 00:00:13]} 53. c8=Q {[%clk
00:32:48]} {[%emt 00:00:06]} Kd3 {[%clk 00:17:06]} {[%emt 00:00:41]} 54. Rd5+
{[%clk 00:33:04]} {[%emt 00:00:15]} Ke4 {[%clk 00:16:55]} {[%emt 00:00:39]} 55.
Qf5# {[%clk 00:33:26]} {[%emt 00:00:09]} 1-0